bitfinex/quotes_ETHUSD_20220310
["timestamp","ask_amount","ask_price","bid_price","bid_amount"]
[1646926501181,0.05238132,2591.0,2590.4,0.25]
[1646926501382,1.17621708,2590.9,2590.2,3.86277]
[1646926501576,0.3,2590.7,2590.2,3.86277]
[1646926501778,0.05319526,2591.1,2590.5,2.88958848]
[1646926502031,1.17786814,2591.0,2590.5,2.88958848]
[1646926502225,1.17786814,2590.9,2590.6,1.15841]
[1646926502426,2.25642128,2591.2,2590.6,1.15841]
[1646926502427,1.17786814,2590.8,2590.6,1.15841]
[1646926502626,1.17786814,2590.7,2590.6,0.96561]
[1646926503225,0.3,2590.8,2590.6,0.96561]
[1646926503426,1.17786814,2590.7,2590.6,0.96561]
[1646926505130,0.05225938,2590.6,2590.5,1.93195]
[1646926505326,1.23012752,2590.6,2590.5,1.93195]
[1646926505529,1.47786814,2590.6,2590.5,1.93195]
[1646926506174,1.86166814,2590.6,2590.5,0.23502498]
[1646926506381,1.86166814,2590.6,2590.3,1.93199]
[1646926506382,0.966,2590.5,2590.3,1.93199]
[1646926506575,1.17786814,2590.4,2590.3,1.93199]
[1646926506774,1.47786814,2590.4,2590.2,1.932]
[1646926506975,0.3,2590.4,2590.2,1.932]
[1646926507176,0.70469848,2590.8,2590.3,1.16238707]
[1646926507375,0.70469848,2590.8,2590.2,1.932]
[1646926507376,0.96579,2590.8,2590.2,1.932]
[1646926507578,0.70469848,2590.9,2590.2,1.932]
[1646926507777,0.70469848,2590.7,2590.2,1.932]
[1646926507977,0.70469848,2590.7,2590.3,0.96573]
[1646926508376,0.70469848,2590.6,2590.3,0.96573]
[1646926508779,1.67057848,2590.6,2590.3,0.96573]
[1646926508982,0.96588,2590.6,2590.3,0.96573]
[1646926509632,4.1838,2591.1,2590.3,0.96573]
[1646926509633,0.70469848,2590.9,2590.5,0.33054365]
[1646926509831,3.8,2591.1,2590.7,0.07820396]
[1646926510033,2.96111976,2591.2,2591.0,1.14463797]
[1646926510034,0.26424128,2591.2,2591.0,1.14463797]
[1646926510231,0.15799122,2591.2,2591.0,1.14463797]
[1646926510634,0.94202469,2591.7,2591.0,1.14463797]
[1646926510635,0.94202469,2591.7,2591.4,1.15951308]
[1646926510831,0.94564864,2591.8,2591.0,0.29372304]
[1646926511035,1.94564864,2591.8,2591.0,2.22442304]
[1646926511235,3.8,2591.7,2591.1,0.08974531]
[1646926511453,0.94202469,2592.0,2591.2,0.1928]
[1646926511636,0.94202469,2592.0,2591.2,0.2749145]
[1646926511637,0.00362464,2591.8,2591.2,0.2749145]
[1646926511833,0.00362464,2591.8,2591.5,1.16586627]
[1646926512033,0.00362464,2591.8,2591.6,0.07382876]
[1646926512634,1.94202469,2592.1,2591.4,0.07370715]
[1646926512635,0.94202469,2592.0,2591.4,0.07370715]
[1646926512833,0.00362493,2591.8,2591.4,0.07370715]
[1646926513034,0.00362493,2591.8,2591.5,0.96524]
[1646926513285,0.00362493,2591.8,2591.6,0.07702012]
[1646926513484,0.00362493,2591.8,2591.7,0.87866876]
[1646926513686,0.94202469,2592.2,2591.7,0.87866876]
[1646926513888,0.94202469,2592.3,2591.7,0.87866876]
[1646926514088,0.00333051,2591.8,2591.7,0.87866876]
[1646926514307,0.94202469,2592.3,2591.7,1.93039]
[1646926514486,0.93202469,2592.3,2591.7,1.93039]
[1646926514686,1.23202469,2592.3,2591.7,1.93039]
[1646926514889,0.3838,2592.2,2591.7,1.93039]
[1646926515390,0.6838,2592.2,2591.7,1.93039]
[1646926515590,0.3044949,2591.6,2591.5,2.91758738]
[1646926515791,0.6044949,2591.6,2591.5,2.91758738]
[1646926516590,0.3044949,2591.6,2591.5,2.91758738]
[1646926518024,0.6044949,2591.6,2591.5,2.91758738]
[1646926518225,0.6044949,2591.6,2591.5,3.11038738]
[1646926519529,0.6044949,2591.6,2591.5,3.13141634]
[1646926519728,0.96525,2592.3,2591.6,39.8838]
[1646926519930,1.0,2592.4,2592.2,0.96506]
[1646926520130,1.56245197,2592.8,2592.2,0.96506]
[1646926520131,1.41303703,2592.8,2592.2,0.96506]
[1646926520328,2.41303703,2592.9,2592.2,0.96506]
[1646926520528,0.70920486,2592.3,2592.2,0.96506]
[1646926520973,0.70920486,2592.4,2592.2,0.96506]
[1646926521173,0.70920486,2592.4,2592.2,1.34886]
[1646926521376,0.70920486,2592.5,2592.2,1.34886]
[1646926521585,0.70920486,2592.6,2592.3,1.04614789]
[1646926521780,0.00370764,2592.7,2592.3,2.01091789]
[1646926522185,0.3,2592.5,2592.3,2.01091789]
[1646926522383,0.70920486,2593.0,2592.5,0.3838]
[1646926522582,0.04556409,2593.8,2592.5,0.3838]
[1646926522583,0.00370769,2592.6,2592.5,12.5848]
[1646926522782,0.00370769,2592.6,2592.5,13.5848]
[1646926522983,1.41303703,2593.8,2593.6,0.91746328]
[1646926523182,12.69165184,2594.5,2593.6,0.91746328]
[1646926523183,1.41303703,2593.9,2593.6,0.91746328]
[1646926523384,0.42993151,2594.4,2593.6,2.84627328]
[1646926523385,3.95695402,2594.1,2593.6,2.84627328]
[1646926523583,3.95695402,2594.1,2593.6,2.31261]
[1646926523584,0.94371361,2594.0,2593.6,2.31261]
[1646926523782,0.94371361,2594.0,2593.6,5.42881]
[1646926524187,0.94371361,2593.8,2593.6,5.42881]
[1646926524426,0.94371361,2593.9,2593.6,5.42881]
[1646926524627,1.41303703,2594.1,2593.7,0.91398364]
[1646926524628,0.94371361,2594.1,2593.7,0.91398364]
[1646926525026,0.94371361,2594.2,2593.7,0.91398364]
[1646926525225,0.94371361,2594.2,2593.6,5.81261]
[1646926525226,0.94371361,2594.1,2593.6,5.42881]
[1646926525627,0.94371361,2594.0,2593.6,5.42881]
[1646926526027,0.94716356,2594.0,2593.6,5.81261]
[1646926526227,0.00344995,2594.0,2593.6,5.16151332]
[1646926526426,0.00344995,2594.0,2593.6,3.73291264]
[1646926526626,0.00344995,2594.0,2593.6,3.5]
[1646926526627,0.94716356,2594.0,2593.6,3.5]
[1646926526827,1.24716356,2594.0,2593.6,3.5]
[1646926527026,0.96097461,2593.9,2593.6,3.5]
[1646926527232,0.96350243,2593.9,2593.6,3.5]
[1646926527435,0.94371361,2593.8,2593.6,3.5]
[1646926527632,0.96097461,2593.8,2593.6,3.5]
[1646926527832,1.26097461,2593.8,2593.6,3.5]
[1646926528033,0.96097461,2593.7,2593.6,3.5]
[1646926528281,1.90468822,2593.7,2593.6,3.5]
[1646926528682,0.96097461,2593.7,2593.6,3.5]
[1646926529782,0.91097461,2593.7,2593.6,3.5]
[1646926530484,0.98567674,2593.7,2592.9,0.25]
[1646926530685,2.43475899,2593.1,2592.9,0.25]
[1646926530886,2.73475899,2593.1,2592.8,1.92929]
[1646926531687,2.73475899,2593.1,2592.7,3.862988]
[1646926532135,2.78798747,2593.1,2592.7,2.83306]
[1646926532335,2.73475899,2593.1,2592.7,0.9036]
[1646926532538,2.73475899,2593.1,2592.7,1.2036]
[1646926533836,3.43992347,2593.1,2593.0,0.03892448]
[1646926534639,2.73475899,2593.1,2593.0,0.03892448]
[1646926535874,3.44010958,2593.1,2593.0,0.03892448]
[1646926536074,2.73475899,2593.1,2593.0,0.03892448]
[1646926536875,2.43475899,2593.1,2593.0,0.03892448]
[1646926538081,2.43475899,2593.1,2593.0,0.4994269]
[1646926538683,2.43475899,2593.1,2593.0,0.1156269]
[1646926538885,2.73475899,2593.1,2593.0,0.1156269]
[1646926539086,0.00364188,2593.2,2593.1,51.3838]
[1646926539284,6.305e-05,2593.2,2593.1,51.3838]
[1646926539525,6.305e-05,2593.2,2593.1,55.8448]
[1646926539725,6.305e-05,2593.2,2593.1,67.5848]
[1646926539924,6.305e-05,2593.2,2593.1,64.5848]
[1646926540123,0.70535059,2594.3,2593.1,65.54925]
[1646926540328,1.09065059,2594.4,2594.0,1.14319809]
[1646926540526,0.70535059,2594.4,2593.5,0.08164192]
[1646926540728,0.0008,2594.5,2593.5,0.08164192]
[1646926540729,0.70535059,2594.3,2593.5,0.08164192]
[1646926540925,0.70535059,2594.3,2593.5,0.07543062]
[1646926541127,0.3,2594.3,2593.5,0.0794176]
[1646926541327,1.00535059,2594.4,2593.5,0.0794176]
[1646926541525,1.00535059,2594.4,2593.6,1.07879387]
[1646926541730,1.00535059,2594.4,2593.7,0.08752071]
[1646926542132,0.3,2594.4,2593.7,0.08752071]
[1646926542331,0.70535059,2594.4,2593.7,0.08752071]
[1646926542730,1.00535059,2594.5,2593.7,0.08752071]
[1646926542934,0.00370612,2594.2,2593.7,0.08752071]
[1646926543979,0.00370612,2594.2,2593.7,0.10869566]
[1646926544178,0.00370617,2594.1,2593.7,0.10869566]
[1646926544379,0.99085676,2594.4,2593.7,0.10869566]
[1646926544579,0.70535059,2594.3,2593.7,0.10869566]
[1646926544778,0.70535059,2594.3,2593.7,0.02117495]
[1646926545582,0.99085676,2594.4,2593.7,0.02117495]
[1646926545780,0.70535059,2594.3,2593.7,0.02117495]
[1646926545980,0.99085676,2594.4,2593.7,0.02117495]
[1646926546178,0.06014076,2594.3,2593.3,0.50433132]
[1646926546379,0.06014076,2594.3,2593.4,1.05370289]
[1646926546579,0.06014076,2594.3,2593.4,1.12085475]
[1646926547043,0.19393037,2594.2,2593.1,3.59028267]
[1646926547240,0.06043104,2594.2,2593.1,3.59028267]
[1646926547441,0.06043104,2594.2,2593.1,3.1431]
[1646926547642,0.06043104,2594.2,2593.1,0.25]
[1646926547643,0.75836951,2594.1,2593.1,0.25]
[1646926547848,0.05697505,2594.0,2593.1,0.25]
[1646926548047,0.35697505,2594.0,2593.1,0.25]
[1646926548249,0.43828601,2593.9,2593.1,0.25]
[1646926548446,0.06083253,2593.8,2593.1,0.25]
[1646926549849,0.8164018,2593.7,2592.6,0.96608656]
[1646926550046,0.06509036,2593.6,2592.7,0.00515416]
[1646926550248,0.8164018,2593.5,2592.7,0.0037076]
[1646926550447,0.06752031,2593.4,2592.7,0.0037076]
[1646926550685,0.8164018,2593.3,2592.9,1.17915923]
[1646926550981,0.8164018,2593.3,2592.9,2.14369923]
[1646926550982,1.1164018,2593.3,2592.9,2.14369923]
[1646926551183,0.3,2593.3,2592.9,2.14369923]
[1646926551382,3.5,2593.2,2592.9,2.14297693]
[1646926551579,17.06697702,2593.5,2593.1,0.3]
[1646926551784,0.81748776,2593.4,2592.7,0.64235226]
[1646926551983,1.78187226,2593.4,2592.7,0.64235226]
[1646926552182,1.78187226,2593.4,2592.9,2.893328]
[1646926552183,0.96446,2593.2,2592.9,2.893328]
[1646926552383,0.96446,2593.2,2592.7,0.25855226]
[1646926552585,0.96446,2593.2,2592.7,0.25484505]
[1646926552783,0.96446,2593.2,2592.5,2.03532505]
[1646926552983,0.96446,2593.2,2592.7,0.3]
[1646926552984,0.88620428,2593.1,2592.7,0.3]
[1646926553184,0.06780172,2593.1,2592.7,0.3]
[1646926553489,0.06780172,2593.1,2592.9,2.893328]
[1646926553884,0.06780172,2593.1,2592.8,0.9635587]
[1646926554084,0.06846869,2592.9,2592.8,0.9635587]
[1646926554526,4.82223,2593.2,2592.8,1.9281187]
[1646926554726,0.81938416,2593.1,2592.8,1.9281187]
[1646926554927,0.81938416,2593.1,2592.6,2.8927954]
[1646926555127,0.9646,2593.1,2592.8,0.3]
[1646926555328,0.9646,2593.1,2592.7,0.3]
[1646926555729,2.89362,2593.0,2592.8,3.8577707]
[1646926556137,2.89362,2593.0,2592.9,0.3]
[1646926556332,4.82285,2593.0,2592.6,3.05145122]
[1646926556637,2.89362,2593.0,2592.6,3.05145122]
[1646926557234,0.9646,2592.9,2592.8,3.8577707]
[1646926558039,0.9646,2592.9,2592.4,2.39022]
[1646926558279,1.02727477,2592.9,2592.4,2.69022]
[1646926558483,1.02727477,2592.9,2592.4,0.761]
[1646926558484,2.00850675,2592.8,2592.4,0.761]
[1646926558684,2.00850675,2592.8,2592.6,3.8583687]
[1646926558685,2.89423,2592.8,2592.6,3.8583687]
[1646926558882,0.07378989,2592.7,2592.6,3.8583687]
[1646926559084,0.07378989,2592.7,2592.2,0.96477]
[1646926559085,0.96479,2592.7,2592.2,0.96477]
[1646926559282,0.06529726,2592.5,2592.0,0.461]
[1646926559482,0.06529726,2592.5,2591.8,0.19424656]
[1646926559782,0.06529726,2592.5,2592.2,0.9647937]
[1646926559986,0.06529726,2592.5,2591.7,1.0]
[1646926560185,1.03024726,2592.5,2591.7,1.0]
[1646926560384,0.07276208,2592.3,2591.7,1.0]
[1646926560585,1.03783208,2592.3,2591.7,1.0]
[1646926560785,0.0617549,2592.2,2591.7,1.0]
[1646926560986,1.9919049,2592.2,2592.0,0.00370252]
[1646926561189,0.0618812,2592.1,2592.0,0.00370252]
[1646926561585,0.96505,2592.0,2591.7,4.8596049]
[1646926561786,0.96505,2592.0,2591.8,1.930123]
[1646926562023,0.96505,2592.0,2591.8,2.8951854]
[1646926562224,0.96505,2592.0,2591.9,0.00370254]
[1646926562926,1.93012,2592.0,2591.9,0.30370254]
[1646926563126,1.93012,2592.0,2591.9,0.3]
[1646926563329,1.93012,2592.0,2591.7,0.3346284]
[1646926563529,1.93012,2592.0,2591.5,0.1928]
[1646926563928,0.96526,2591.2,2591.0,0.461]
[1646926564130,1.93051,2591.4,2591.0,0.461]
[1646926564528,1.93051,2591.4,2591.0,1.4261987]
[1646926565429,4.82611,2591.4,2591.0,1.4261987]
[1646926565873,3.27928,2591.9,2591.1,0.00370293]
[1646926566078,2.89548,2591.9,2591.1,0.00370293]
[1646926566476,1.93023,2591.8,2591.1,1.93404523]
[1646926566677,1.9304,2591.3,2591.1,1.9303423]
[1646926566877,1.93023,2591.8,2591.3,1.69707132]
[1646926567077,1.93023,2591.8,2591.4,0.00370279]
[1646926567278,1.93023,2591.8,2591.4,0.96885139]
[1646926567476,1.93023,2591.8,2591.4,0.96459033]
[1646926568078,1.93023,2591.8,2591.5,0.00370275]
[1646926568279,1.93028,2591.6,2591.5,0.00370275]
[1646926568885,4.8257,2591.6,2591.3,4.80002333]
[1646926569183,4.8257,2591.6,2591.3,3.62736842]
[1646926569422,4.8257,2591.6,2591.4,0.00370277]
[1646926570128,0.96515,2591.7,2591.4,0.46470277]
[1646926570529,0.3858,2592.4,2591.4,0.46470277]
[1646926570728,0.13819997,2592.6,2591.4,0.46822608]
[1646926570729,0.84355056,2592.6,2591.4,0.46822608]
[1646926570928,0.84355056,2592.6,2591.4,0.46452331]
[1646926571130,3.86069,2592.0,2591.8,2.8947467]
[1646926571330,0.3838,2592.5,2591.8,2.8947467]
[1646926571734,0.96492,2592.2,2591.8,2.8947467]
[1646926572133,0.96492,2592.2,2591.8,14.6347467]
[1646926572333,0.96492,2592.2,2591.9,16.4439404]
[1646926572536,0.96492,2592.2,2592.1,11.74]
[1646926572732,3.85962,2592.7,2592.1,12.201]
[1646926572933,0.96481,2592.6,2592.1,13.41152438]
[1646926573191,1.03663568,2592.6,2592.2,0.96476]
[1646926573581,1.92947,2592.5,2592.2,0.96476]
[1646926574481,1.92947,2592.5,2591.9,4.2429404]
[1646926574482,1.99267186,2592.3,2591.9,3.8591404]
[1646926574681,1.92996,2592.3,2591.9,3.8591404]
[1646926574880,0.06984817,2592.1,2591.9,3.8591404]
[1646926575080,1.92996,2592.3,2591.9,15.5991404]
[1646926575282,0.80827609,2592.2,2591.9,16.0601404]
[1646926575686,0.35463615,2592.6,2592.1,33.1694423]
[1646926575982,0.35463615,2592.6,2592.2,13.1657212]
[1646926576182,0.00240043,2592.9,2592.4,45.5]
[1646926576384,3.85903,2593.1,2592.5,12.201]
[1646926576586,0.00240066,2592.9,2592.5,12.201]
[1646926576786,0.0582464,2593.2,2592.7,1.01253714]
[1646926577029,0.94019369,2593.6,2592.8,12.201]
[1646926577030,0.70535059,2593.4,2592.8,12.201]
[1646926577229,0.99219067,2593.6,2592.8,12.201]
[1646926577230,0.70535059,2593.5,2592.8,12.201]
[1646926577531,0.9644,2593.4,2592.8,0.461]
[1646926577727,0.9344,2593.4,2592.8,0.461]
[1646926578128,1.63975059,2593.4,2592.8,0.461]
[1646926578334,0.9344,2593.4,2592.8,1.4254717]
[1646926578632,1.89885,2593.4,2592.9,0.3]
[1646926578835,2.89381,2593.2,2592.7,2.38991]
[1646926579133,1.01958045,2593.1,2592.7,2.38991]
[1646926579336,0.96461,2593.1,2592.7,2.38991]
[1646926579533,0.96461,2593.1,2592.9,1.9292248]
[1646926579733,0.96461,2593.1,2592.9,3.1937548]
[1646926580990,2.89381,2593.2,2592.9,3.1937548]
[1646926581588,2.89750923,2593.2,2592.9,14.9337548]
[1646926581792,0.96461,2593.1,2592.9,15.3947548]
[1646926582397,0.96461,2593.1,2592.9,3.6547548]
[1646926582593,0.96461,2593.1,2592.9,15.3947548]
[1646926582796,3.86075314,2593.2,2592.9,15.3947548]
[1646926583195,2.89632314,2593.2,2592.9,15.3947548]
[1646926583398,1.03041942,2593.5,2593.1,11.74]
[1646926583599,1.03041942,2593.5,2593.2,1.9286369]
[1646926583799,0.96428,2593.5,2593.2,1.9286369]
[1646926583996,1.92861,2593.5,2593.2,1.9286369]
[1646926584200,1.92861,2593.5,2593.2,0.9643369]
[1646926584201,0.0606341,2593.4,2593.2,0.9643369]
[1646926584438,0.0606341,2593.4,2593.1,1.9286737]
[1646926584643,0.0606341,2593.4,2593.1,3.8578688]
[1646926585641,0.0606341,2593.4,2593.2,0.3]
[1646926586140,0.06425524,2593.4,2593.2,1.26443]
[1646926586340,0.00362114,2593.4,2593.2,4.1574571]
[1646926586940,0.00362114,2593.4,2593.2,2.46114027]
[1646926587145,1.92861,2593.5,2593.2,2.46114027]
[1646926587340,0.00362111,2593.4,2593.2,2.46114027]
[1646926587942,0.00362111,2593.4,2593.3,0.87927681]
[1646926588183,0.00362111,2593.4,2593.3,1.17927681]
[1646926588378,1.92861,2593.5,2593.3,12.91927681]
[1646926588577,0.05540778,2594.0,2593.5,0.96417]
[1646926588780,0.01448177,2593.9,2593.6,12.201]
[1646926588980,0.01448177,2593.9,2593.7,0.461]
[1646926589378,1.94289177,2593.9,2593.7,1.34387768]
[1646926589680,1.94289177,2593.9,2593.7,0.461]
[1646926589877,1.93093276,2593.9,2593.7,0.461]
[1646926590278,1.93093276,2593.9,2593.7,1.4251084]
[1646926590478,1.93093276,2593.9,2593.7,2.3892584]
[1646926590681,1.92841,2593.9,2593.7,2.3892584]
[1646926590879,1.92841,2593.9,2593.7,1.4251084]
[1646926591081,1.93200583,2593.9,2593.7,1.4251084]
[1646926591681,1.93200583,2593.9,2593.7,13.1651084]
[1646926591924,1.92841,2593.9,2593.7,1.4251084]
[1646926592331,1.93200583,2593.9,2593.7,1.4251084]
[1646926593028,1.93200583,2593.9,2593.6,1.9282167]
[1646926593029,0.05165499,2593.8,2593.6,1.9282167]
[1646926594030,1.14080558,2593.8,2593.3,1.9289136]
[1646926594229,0.05330477,2593.6,2593.5,0.9644936]
[1646926594629,0.05330477,2593.6,2593.5,1.2644936]
[1646926595428,0.05330477,2593.6,2593.5,0.9644936]
[1646926595687,0.81136911,2593.6,2593.5,0.9644936]
[1646926595878,0.75806434,2593.6,2593.5,1.2644936]
[1646926597779,0.75806434,2593.6,2593.5,1.7254936]
[1646926598180,0.00217729,2593.7,2593.6,0.96428]
[1646926598387,0.00217729,2593.7,2593.5,1.2644936]
[1646926598388,0.76098246,2593.7,2593.5,1.2644936]
[1646926598985,0.76098246,2593.7,2593.5,0.9644936]
[1646926599186,0.76098246,2593.7,2593.5,1.2644936]
[1646926599187,2.68644459,2593.7,2593.5,1.2644936]
[1646926599426,0.70759459,2593.6,2593.5,0.9644936]
[1646926599728,0.81472224,2593.6,2593.5,1.2644936]
[1646926600128,0.81472224,2593.6,2593.5,0.9644936]
[1646926600328,0.81472224,2593.6,2593.5,1.2644936]
[1646926600529,1.19852224,2593.6,2593.5,0.9644936]
[1646926600729,4.69852224,2593.6,2593.3,1.9289136]
[1646926600929,4.69852224,2593.6,2592.9,0.00144294]
[1646926600930,2.31306,2593.5,2592.9,0.00144294]
[1646926601130,2.31306,2593.5,2592.5,0.00144294]
[1646926601328,2.31306,2593.5,2592.4,7.30936492]
[1646926601528,3.01841059,2593.5,2592.4,7.30936492]
[1646926601728,0.3838,2593.3,2592.4,7.30936492]
[1646926601930,0.3838,2593.3,2592.4,1.9294992]
[1646926601931,0.3838,2592.9,2592.4,1.9294992]
[1646926602130,0.3838,2592.9,2592.3,0.9649291]
[1646926603188,0.96493,2592.8,2592.5,0.00342198]
[1646926603385,1.34873,2592.8,2592.5,0.00342198]
[1646926603983,1.92971,2592.7,2592.4,0.9648381]
[1646926604184,1.92971,2592.7,2592.5,0.00342196]
[1646926604384,4.82427,2592.7,2592.5,0.00342196]
[1646926604785,4.75962532,2592.7,2592.5,0.00342196]
[1646926605191,0.96495,2592.6,2592.3,1.929626]
[1646926605390,2.89481,2592.6,2592.3,1.929626]
[1646926605589,2.89481,2592.6,2592.5,0.00342198]
[1646926606926,2.89481,2592.6,2592.3,0.23614781]
[1646926610133,3.10154529,2592.6,2592.3,0.23614781]
[1646926610338,3.10154529,2592.6,2592.4,0.9648026]
[1646926610537,2.13659529,2592.6,2592.5,12.201]
[1646926610783,0.20673529,2592.6,2592.5,12.201]
[1646926611280,0.20673529,2592.6,2592.5,13.201]
[1646926611681,0.20673529,2592.6,2592.5,1.461]
[1646926612180,0.20673529,2592.6,2592.5,0.461]
[1646926612780,0.20673529,2592.6,2592.5,12.201]
[1646926612986,0.96447,2592.8,2592.6,74.74]
[1646926613183,0.00371881,2593.0,2592.8,11.74]
[1646926613386,0.00371881,2593.0,2592.9,12.201]
[1646926613586,0.00371881,2593.0,2592.9,0.461]
[1646926613986,0.00251373,2593.0,2592.9,0.461]
[1646926614829,2.8934,2593.1,2592.9,0.461]
[1646926615030,2.89558061,2593.1,2592.9,0.461]
[1646926615827,2.89558061,2593.1,2592.9,1.66506749]
[1646926616027,0.06736953,2593.0,2592.9,0.461]
[1646926616428,2.89678958,2593.1,2592.9,0.461]
[1646926616628,0.06071139,2593.0,2592.9,0.461]
[1646926617028,0.06071139,2593.0,2592.9,1.56605015]
[1646926617229,2.89678958,2593.1,2592.9,1.56605015]
[1646926617629,2.8967896,2593.1,2592.9,1.56605015]
[1646926618482,2.8967896,2593.1,2592.9,13.30605015]
[1646926618683,0.00580188,2593.1,2593.0,12.70432]
[1646926618881,0.00241228,2593.1,2593.0,1.42532]
[1646926619082,0.00241228,2593.1,2593.0,1.72532]
[1646926619382,0.73052546,2593.1,2593.0,0.3]
[1646926619582,0.78045679,2593.1,2593.0,0.3]
[1646926619781,0.08537193,2593.0,2592.9,0.3]
[1646926619983,0.86814248,2593.0,2592.9,0.3]
[1646926620686,0.86814248,2593.0,2592.8,0.9643974]
[1646926620687,0.05892263,2592.9,2592.8,0.9643974]
[1646926620888,0.05892263,2592.9,2592.4,2.880186]
[1646926620889,0.78703581,2592.9,2592.4,2.880186]
[1646926621083,0.78730755,2592.8,2592.5,0.84955645]
[1646926621285,1.92967,2592.9,2592.5,0.84955645]
[1646926621286,0.79357906,2592.7,2592.5,0.84955645]
[1646926621483,0.79357906,2592.7,2592.4,0.964839]
[1646926621484,0.06076813,2592.5,2592.4,0.964839]
[1646926621681,0.06076813,2592.5,2592.4,1.81433626]
[1646926621682,0.72811318,2592.5,2592.4,1.81433626]
[1646926621926,0.72811318,2592.6,2592.4,0.964839]
[1646926622128,0.72811318,2592.5,2592.4,0.914839]
[1646926622329,0.72811318,2592.5,2592.3,1.9296146]
[1646926622527,0.72811318,2592.5,2591.5,6.2934686]
[1646926622528,0.72811318,2592.4,2591.6,0.19424294]
[1646926622728,0.72811318,2592.3,2591.7,1.14978524]
[1646926622927,0.72811318,2592.3,2591.8,0.84978524]
[1646926622928,0.72811318,2592.2,2591.8,0.84978524]
[1646926623128,0.72811318,2592.2,2591.9,0.84978524]
[1646926623332,0.72811318,2592.2,2592.0,2.77959684]
[1646926623637,0.72811318,2592.2,2592.0,2.2298116]
[1646926623638,2.65806318,2592.2,2592.0,2.2298116]
[1646926623831,0.72811318,2592.1,2592.0,2.2298116]
[1646926624031,0.72811318,2592.1,2592.0,3.07892793]
[1646926624534,0.72811318,2592.1,2592.0,0.3]
[1646926624732,0.72811318,2592.1,2591.5,0.00144294]
[1646926624733,1.93023,2592.0,2591.5,0.00144294]
[1646926624933,0.96519,2591.9,2591.4,1.04193078]
[1646926625132,0.96519,2591.9,2591.5,0.84913078]
[1646926625333,0.96519,2591.9,2591.5,2.77926358]
[1646926625334,1.93038,2591.9,2591.5,2.77926358]
[1646926625534,1.93038,2591.9,2591.6,0.84913078]
[1646926625980,1.93038,2591.9,2591.6,1.15282915]
[1646926626188,2.6584859,2591.8,2591.5,2.2301328]
[1646926626382,3.86063,2591.8,2591.5,2.2301328]
[1646926628486,3.86063,2591.8,2591.6,0.90730707]
[1646926628889,2.16349219,2591.8,2591.6,0.90730707]
[1646926629639,2.16349219,2591.8,2591.6,1.10010707]
[1646926629839,2.35127461,2591.8,2591.6,1.10010707]
[1646926630440,2.35127461,2591.8,2591.6,0.90730707]
[1646926630640,2.35127461,2591.8,2591.5,2.88766656]
[1646926630845,2.35127461,2591.8,2591.5,0.46473376]
[1646926631443,0.96515,2591.7,2591.5,0.46473376]
[1646926631642,0.96515,2591.7,2591.5,0.461]
[1646926631842,1.02502104,2591.7,2591.5,0.46439558]
[1646926632043,1.02502104,2591.7,2591.5,0.76439558]
[1646926632443,1.02502104,2591.7,2591.5,0.30339558]
[1646926632842,1.02502104,2591.7,2591.5,1.26846328]
[1646926633294,1.02502104,2591.7,2591.5,1.26846324]
[1646926634094,1.02502104,2591.7,2591.5,1.2650677]
[1646926634295,1.02502104,2591.7,2591.5,1.26846324]
[1646926634696,1.02502104,2591.7,2591.5,0.00339554]
[1646926634697,0.06369636,2591.6,2591.5,0.00339554]
[1646926635296,0.06369636,2591.6,2591.3,1.69707132]
[1646926635297,0.15742239,2591.6,2591.3,1.69707132]
[1646926635498,0.96525,2591.5,2591.3,1.69707132]
[1646926635698,0.96525,2591.5,2591.4,0.0032937]
[1646926636503,0.96525,2591.5,2591.3,1.69707132]
[1646926636700,1.93049,2591.5,2591.3,1.70038767]
[1646926636931,1.93049,2591.5,2591.3,2.00038767]
[1646926637234,1.93049,2591.5,2591.3,1.70038767]
[1646926637633,1.93049,2591.5,2591.3,1.69707132]
[1646926638032,1.93049,2591.5,2591.3,1.7003877]
[1646926638836,0.9655,2591.2,2590.9,0.01326749]
[1646926639240,1.93095,2591.2,2590.8,0.3]
[1646926639436,1.93095,2591.2,2590.7,0.3]
[1646926640036,0.96545,2591.1,2590.7,0.3]
[1646926640438,0.96545,2591.1,2590.8,0.9653315]
[1646926640690,0.96545,2591.1,2590.9,0.3]
[1646926641690,0.96545,2591.1,2590.8,1.2653304]
[1646926641885,0.96545,2591.1,2590.8,0.3]
[1646926642685,0.96545,2591.1,2590.8,0.30121737]
[1646926643186,0.96545,2591.1,2590.8,0.00121737]
[1646926643588,0.96545,2591.1,2590.5,3.1961658]
[1646926643788,0.96545,2591.1,2590.4,0.00487022]
[1646926643789,7.74586,2591.1,2590.4,0.00487022]
[1646926643989,0.96566,2591.0,2590.4,0.31492695]
[1646926644190,0.96566,2591.0,2590.4,0.01492695]
[1646926644191,0.9657,2590.8,2590.4,0.01492695]
[1646926644432,0.9657,2590.8,2590.4,0.31492695]
[1646926645231,0.9657,2590.8,2590.3,0.007]
[1646926645432,1.3495,2590.8,2590.3,0.007]
[1646926645834,0.05695798,2590.7,2590.3,0.007]
[1646926646133,0.05521905,2590.6,2590.3,0.007]
[1646926646334,0.0669079,2590.5,2590.3,0.007]
[1646926646534,2.9642779,2590.5,2590.3,0.007]
[1646926646737,0.05969893,2590.4,2590.3,0.007]
[1646926648984,2.89737,2590.5,2590.3,0.007]
[1646926649690,0.04557169,2590.4,2590.3,0.007]
[1646926650086,2.89737,2590.5,2590.3,0.01073143]
[1646926650786,1.93134,2590.6,2590.4,11.74]
[1646926650989,1.93134,2590.6,2590.4,0.84006791]
[1646926651186,1.93134,2590.6,2590.4,0.461]
[1646926652043,1.93134,2590.6,2590.4,0.761]
[1646926652240,1.93134,2590.6,2590.4,1.7264507]
[1646926652439,1.93134,2590.6,2590.4,1.73005616]
[1646926653247,1.93134,2590.6,2590.4,1.7264507]
[1646926653446,1.93134,2590.6,2590.4,1.4264507]
[1646926653645,1.93134,2590.6,2590.4,1.37753945]
[1646926653847,2.08568,2590.6,2590.4,1.37753945]
[1646926654248,1.93134,2590.6,2590.4,1.37753945]
[1646926654448,1.93134,2590.6,2590.4,1.37431317]
[1646926654652,0.0940027,2590.5,2590.4,1.37431317]
[1646926654847,0.0940027,2590.5,2590.4,1.37540192]
[1646926656084,0.0940027,2590.5,2590.4,1.37431317]
[1646926657792,0.0940027,2590.5,2590.4,1.67431317]
[1646926657994,0.0940027,2590.5,2590.4,2.37901317]